Cogmind - Beta 13 @@@ ROGUE MODE // 2024.05.25 @ 18:46:27 Player: KingCain Result: Destroyed by P-60 Hacker with Shock Rifle Performance ------------- Evolutions (3) 1500 Regions Visited (4) 800 Robots Destroyed (51) 255 Value Destroyed (1026) 1026 Prototype IDs (1) 20 Alien Tech Used (0) 0 Bonus (29) 29 TOTAL SCORE: 3630 Bonus ------- High Alert Combat Kills 29 Cogmind --------- Core Integrity 0/700 Matter 48/300 Energy 100/100 System Corruption 13% Temperature Cool (0) Movement Treading (170) Location -7/Factory Parts ------- > --- POWER (2) -------- (None) > --- PROPULSION (5) --- Armored Treads > --- UTILITY (2) ------ (None) > --- WEAPON (4) ------- (None) > --- INVENTORY (5) ---- Flight Unit Cooled VTOL Module Peak State ------------ > --- POWER ------------ (None) > --- PROPULSION ------- Light Treads Improved Treads > --- UTILITY ---------- Improved Sensor Array Energy Filter > --- WEAPON ----------- Arc Projector Arc Projector Advanced Assault Cannon Mini Grenade Launcher > --- INVENTORY -------- Flight Unit [Rating: 24] Favorites ----------- Power Heavy Ion Engine Engine Heavy Ion Engine Power Core Light Nuclear Core Propulsion Light Treads Treads Light Treads Leg Aluminum Leg Flight Unit Flight Unit Utility Small Storage Unit Device Shield Generator Storage Small Storage Unit Protection Medium Armor Plating Weapon Mini Grenade Launcher Energy Gun Arc Projector Ballistic Gun Light Assault Rifle Ballistic Cannon Advanced Assault Cannon Launcher Mini Grenade Launcher Build | -11 -10 -9 -8 -7 ------- Run | Yrd Mat Mat Mat Fac Slots Evolved 6 | . . 2 2 2 Power 1 | . . . 1 . Propulsion 3 | . . 1 1 1 Utility . | . . . . . Weapon 2 | . . 1 . 1 Parts Attached 59 | 6 2 28 6 17 Power 10 | 1 1 3 3 2 Engine 8 | 1 1 3 3 . Core 2 | . . . . 2 Reactor . | . . . . . Propulsion 23 | 2 . 16 2 3 Treads 9 | 2 . 3 1 3 Leg 1 | . . 1 . . Wheel . | . . . . . Hover . | . . . . . Flight 13 | . . 12 1 . Utility 7 | 1 1 2 1 2 Device 5 | . 1 1 1 2 Storage 1 | 1 . . . . Processor . | . . . . . Hackware . | . . . . . Protection 1 | . . 1 . . Artifact . | . . . . . Weapon 19 | 2 . 7 . 10 Energy Gun 3 | . . 1 . 2 Energy Cannon . | . . . . . Ballistic Gun 5 | 2 . 3 . . Ballistic Cannon 4 | . . 1 . 3 Launcher 7 | . . 2 . 5 Special Weapon . | . . . . . Impact Weapon . | . . . . . Slashing Weapon . | . . . . . Piercing Weapon . | . . . . . Special Melee Weapon . | . . . . . Unidentified Prototypes 1 | . . 1 . . Corrupted Parts 1 | . . . . 1 System Corruption 3 | . . . . 3 Parts Lost 32 | . . 7 12 13 Power 7 | . . 2 3 2 Propulsion 11 | . . 4 5 2 Utility 4 | . . 1 1 2 Weapon 10 | . . . 3 7 Highest Loss Streak 11 | . . 3 6 11 To Critical Strikes . | . . . . . Average Slot Usage (%) 70 | . 89 91 61 31 Engine 7 | . 14 9 10 . Treads 15 | . 28 13 23 7 Flight 6 | . . 15 . . Device 6 | . 4 6 3 6 Storage 7 | . 14 11 6 . Protection 1 | . . 3 . . Energy Gun 2 | . . 2 . 3 Ballistic Gun 9 | . 28 11 . . Ballistic Cannon 3 | . . 3 2 5 Launcher 8 | . . 11 12 6 Naked Turns 120 | . . . 32 88 Heaviest Build 24 | 13 14 24 23 21 Greatest Support 86 | 40 40 66 86 43 Greatest Overweight (x) 6 | . . 6 2 3 Average Overweight (x) . | . . . . . Largest Inventory Capacity 8 | 8 8 8 8 5 Average Capacity 7 | 7 8 8 7 5 Most Carried 8 | 3 6 8 7 5 Average Carried 4 | 2 4 4 6 2 Final Capacity 8 | 8 8 8 5 5 Final Carried 8 | 3 6 8 5 2 Class Distribution -------------------- 46% | Mutant 17% | Tank 11% | Scavenger-Tank 8% | Skirmisher 6% | Scavenger-Mutant 5% | Bomber 3% | Scavenger-Gunner Dominant Class ---------------- Mutant | -10/Materials Tank | -9/Materials Mutant | -8/Materials Mutant | -7/Factory Resources | -11 -10 -9 -8 -7 ----------- Run | Yrd Mat Mat Mat Fac Matter Collected 1128 | 308 64 407 289 60 Remotely . | . . . . . Salvage Created 1020 | 187 160 564 109 . Parts 94 | 13 17 49 15 . Haulers Intercepted 1 | . . 1 . . Recyclers Shooed 1 | . . 1 . . Parts Field Recycled . | . . . . . Retrieved Matter . | . . . . . Parts Self-Destructed . | . . . . . Prevented . | . . . . . Kills | -11 -10 -9 -8 -7 ------- Run | Yrd Mat Mat Mat Fac Combat Hostiles Destroyed 25 | . 5 16 3 1 Melee 3 | . . 2 1 . Guns 13 | . 5 8 . . Cannons 2 | . . 2 . . AOE 7 | . . 4 2 1 Classes Destroyed 10 | 2 3 4 1 . Worker 4 | . . 2 2 . Builder 11 | . 1 5 5 . Tunneler 4 | 4 . . . . Hauler 1 | . . 1 . . Recycler 3 | 1 . 1 1 . Watcher 3 | . . 1 2 . Swarmer 9 | . 3 5 1 . Grunt 9 | . 2 7 . . Sentry 6 | . . 4 1 1 Hunter 1 | . . . 1 . Best Kill Streak 10 | 2 3 5 10 1 Combat Bots Only 4 | . 3 4 1 1 Max Kills in Single Turn 4 | 1 1 2 4 1 Gunslinging . | . . . . . Exploded 1 | . . 1 1 1 Melee 1 | . . 1 1 . Uniques/NPCs Destroyed . | . . . . . Combat | -11 -10 -9 -8 -7 -------- Run | Yrd Mat Mat Mat Fac Hostile Shots Fired 500 | . 61 139 100 200 Missed 155 | . 16 46 31 62 Damage Taken 4548 | . 364 1061 1107 2016 Core 1281 | . 61 164 354 702 Absorbed by Shields 291 | . . 132 159 . Core Remaining (%) 67 | 100 75 59 35 . Volleys Fired 93 | 12 16 43 12 10 Largest 4 | 2 2 3 3 4 Hottest 188 | 40 40 109 95 188 Shots Fired 207 | 24 32 106 25 20 Gun 139 | 24 32 79 . 4 Cannon 17 | . . 5 3 9 Launcher 51 | . . 22 22 7 Special . | . . . . . Kinetic 140 | 24 32 72 3 9 Thermal 12 | . . 12 . . Explosive 50 | . . 22 22 6 Electromagnetic 5 | . . . . 5 Robot Hit Streak 10 | 6 7 10 7 6 Robot Miss Streak 7 | 4 7 4 5 3 Penetration Max . | . . . . . Secondary Targets 4 | . 3 1 . . Max Gunslinging Chain 1 | . 1 1 . . Shots Hit Robots 116 | 12 16 60 16 12 Core Hits 90 | 8 11 41 24 6 Critical Kills . | . . . . . Critical Parts Destroyed . | . . . . . Critical Strikes 4 | . . 2 . 2 Burn 2 | . . 2 . . Blast 2 | . . . . 2 Melee Attacks . | . . . . . Impact . | . . . . . Slashing . | . . . . . Piercing . | . . . . . Sneak Attacks . | . . . . . Combat Hostiles . | . . . . . Follow-up Attacks . | . . . . . Damage Inflicted 3629 | 134 177 1536 1436 346 Guns 840 | 134 177 517 . 12 Cannons 267 | . . 53 27 187 Explosions 2466 | . . 948 1383 135 Melee . | . . . . . Ramming 56 | . . 18 26 12 Kinetic 1007 | 134 177 482 27 187 Thermal 277 | . . 88 189 . Explosive 2251 | . . 948 1194 109 Electromagnetic 38 | . . . . 38 Impact . | . . . . . Slashing . | . . . . . Piercing . | . . . . . Highest Corruption 13 | . . . 1 13 Average Corruption 8 | . . . 1 9 Corruption Purged . | . . . . . Corruption Blocked . | . . . . . Effects 11 | . . . . 11 Message Errors 2 | . . . . 2 Matter Fused 1 | . . . . 1 Heat Flow Errors 3 | . . . . 3 Energy Discharges 1 | . . . . 1 Parts Rejected 1 | . . . . 1 Data Loss (minor) 1 | . . . . 1 Misdirections 2 | . . . . 2 Overload Shots . | . . . . . Overflow Damage 74 | . . 18 56 . Projectiles . | . . . . . Explosions 74 | . . 18 56 . Melee . | . . . . . Knockbacks 2 | . . . 1 1 Impact . | . . . . . Kinetic 2 | . . . 1 1 Secondary . | . . . . . Self-Inflicted Damage 671 | . . 135 445 91 Shots 23 | . . 5 15 3 Rammed 24 | . . 4 11 9 Targets Rammed 28 | . . 6 13 9 Kicked . | . . . . . Crushed 4 | . . 2 2 . Highest Temperature 282 | . 12 282 64 252 Average Temperature 96 | . 8 116 24 92 Received Heat Transfer 1235 | . 24 364 271 576 Effects 4 | . . 4 . . Energy Bleed 1 | . . 1 . . Interference 3 | . . 3 . . Siege Activations . | . . . . . Robots Corrupted . | . . . . . Combat Hostiles . | . . . . . Parts Fried . | . . . . . Impact Corruptions . | . . . . . Robots Melted . | . . . . . Combat Hostiles . | . . . . . Parts Melted . | . . . . . Heat Transferred 570 | . . 370 200 . Parts Sabotaged . | . . . . . Parts Stolen . | . . . . . Parts Stripped . | . . . . . Power Chain Reactions . | . . . . . Alert | -11 -10 -9 -8 -7 ------- Run | Yrd Mat Mat Mat Fac Peak Influence 496 | 25 142 496 425 261 Initial 188 | . 16 59 145 188 Average 183 | 11 95 248 281 160 Maximum Alert Level 2 | . . 2 2 1 Low Security (%) 62 | 100 100 45 39 58 Level 1 31 | . . 40 47 41 Level 2 6 | . . 13 13 . Level 3 . | . . . . . Level 4 . | . . . . . Level 5 . | . . . . . High Security . | . . . . . Max Security . | . . . . . Squads Dispatched 7 | . 2 2 1 2 Investigation 1 | . 1 . . . Extermination 2 | . . . . 2 Reinforcement 4 | . 1 2 1 . Assault . | . . . . . Garrison . | . . . . . Intercept . | . . . . . Searches Triggered . | . . . . . Construction Impeded 1 | . . . 1 . Haulers Reinforced . | . . . . . Active Scanning Responses . | . . . . . Cargo Convoy Interrupts . | . . . . . Stealth | -11 -10 -9 -8 -7 --------- Run | Yrd Mat Mat Mat Fac Distress Signals 4 | . 1 3 . . Communications Jammed . | . . . . . Distress Signals . | . . . . . Times Spotted 56 | . 9 26 15 6 Peak Tracking Total 7 | . 4 6 7 4 Tactical Retreats 4 | . . 1 1 2 Traps | -11 -10 -9 -8 -7 ------- Run | Yrd Mat Mat Mat Fac Traps Triggered 2 | . 1 1 . . Indirectly . | . . . . . Trap Hack Attempts . | . . . . . Triggered . | . . . . . Disarmed . | . . . . . Reprogrammed . | . . . . . Reused . | . . . . . Traps Extracted . | . . . . . Installed . | . . . . . Triggered . | . . . . . Machines | -11 -10 -9 -8 -7 ---------- Run | Yrd Mat Mat Mat Fac Machines Disabled 11 | . . 3 5 3 Max in Single Turn 3 | . . 1 3 1 Machines Repaired . | . . . . . Machines Dismantled . | . . . . . Machines Sabotaged . | . . . . . Overloaded Fab Kills . | . . . . . Hacking | -11 -10 -9 -8 -7 --------- Run | Yrd Mat Mat Mat Fac Machines Accessed 1 | . . 1 . . Terminals 1 | . . 1 . . Fabricators . | . . . . . Repair Stations . | . . . . . Recycling Units . | . . . . . Scanalyzers . | . . . . . Garrison Access . | . . . . . Total Hacks 3 | . . 3 . . Successful . | . . . . . Failed 3 | . . 3 . . Catastrophic 1 | . . 1 . . Database Lockouts . | . . . . . Manual . | . . . . . Terminals 3 | . . 3 . . Fabricators . | . . . . . Repair Stations . | . . . . . Recycling Units . | . . . . . Scanalyzers . | . . . . . Garrison Access . | . . . . . Terminal Hacks . | . . . . . Fabricator Hacks . | . . . . . Repair Station Hacks . | . . . . . Recycling Unit Hacks . | . . . . . Scanalyzer . | . . . . . Garrison Access Hacks . | . . . . . Unauthorized Hacks . | . . . . . Terminals . | . . . . . Fabricators . | . . . . . Repair Stations . | . . . . . Recycling Units . | . . . . . Scanalyzers . | . . . . . Garrison Access . | . . . . . Data Cores Recovered . | . . . . . Used . | . . . . . Hacking Detections 1 | . . 1 . . Full Trace Events 1 | . . 1 . . Feedback Events . | . . . . . Feedback Blocked . | . . . . . Robot Schematics Acquired . | . . . . . Robots Built . | . . . . . Authchips . | . . . . . Time . | . . . . . Total Robot Build Rating . | . . . . . Part Schematics Acquired . | . . . . . Parts Built . | . . . . . Authchips . | . . . . . Time . | . . . . . Total Part Build Rating . | . . . . . Parts Repaired . | . . . . . Time . | . . . . . Parts Recycled . | . . . . . Recycled Matter . | . . . . . Retrieved Matter . | . . . . . Retrieved Components . | . . . . . Parts Scanalyzed . | . . . . . Part Schematics Acquired . | . . . . . Parts Damaged . | . . . . . Bothacking | -11 -10 -9 -8 -7 ------------ Run | Yrd Mat Mat Mat Fac Used RIF Installer . | . . . . . Robots Hacked . | . . . . . Non-combat . | . . . . . Combat . | . . . . . Robot Hacks Applied . | . . . . . Relay Couplers Released . | . . . . . Fabnet Peak Effective % . | . . . . . Robots Rewired . | . . . . . Allies Hacked . | . . . . . Hacks Repelled . | . . . . . Allies | -11 -10 -9 -8 -7 -------- Run | Yrd Mat Mat Mat Fac Total Allies . | . . . . . Largest Group . | . . . . . Highest-Rated Group . | . . . . . Highest-Rated Ally . | . . . . . Total Orders . | . . . . . Ally Attacks . | . . . . . Total Damage . | . . . . . Kills . | . . . . . Allies Corrupted . | . . . . . Allies Melted . | . . . . . Intel | -11 -10 -9 -8 -7 ------- Run | Yrd Mat Mat Mat Fac Robot Analysis Total . | . . . . . Derelict Logs Recovered . | . . . . . Drone Launches . | . . . . . Drone Recoveries . | . . . . . Exploration | -11 -10 -9 -8 -7 ------------- Run | Yrd Mat Mat Mat Fac Turns Passed 2229 | 204 361 847 256 561 Spaces Moved 1368 | 103 188 498 163 416 Core 273 | 5 . 1 71 196 Treads 777 | 98 188 191 80 220 Legs 11 | . . 11 . . Wheels . | . . . . . Hover . | . . . . . Flight 307 | . . 295 12 . Fastest Speed 34 | 50 160 34 35 50 Average Speed 129 | 154 160 131 110 113 Slowest Speed 350 | 160 160 350 160 200 Overloaded Moves . | . . . . . Propulsion Burnouts . | . . . . . Robots Hopped . | . . . . . Cave-ins Triggered . | . . . . . Exploration Rate (%) 18 | 5 26 30 18 14 Regions Visited 4 Branch Regions . Pre-discovered Areas . | . . . . . Known Exits Taken . | . . . . . Unknown Exits Taken 4 | 1 1 1 1 . Scrap Searched . | . . . . . Spaces Dug . | . . . . . Terrain Destroyed 266 | . . 128 111 27 Melee . | . . . . . Projectile . | . . . . . AOE 266 | . . 128 111 27 Terrain Rammed . | . . . . . Walls Destroyed . | . . . . . Machines Disabled . | . . . . . Actions | -11 -10 -9 -8 -7 --------- Run | Yrd Mat Mat Mat Fac Total 1631 | 123 220 605 207 476 Wait 41 | . 7 5 12 17 Move 1364 | 102 187 497 162 416 Hop . | . . . . . Pick Up 21 | 3 5 7 1 5 Fast Attach 40 | 6 2 19 4 9 Attach 19 | . . 9 2 8 Detach 4 | . . 4 . . Swap . | . . . . . Drop 21 | . 3 15 1 2 Fire 93 | 12 16 43 12 10 Melee . | . . . . . Ram 18 | . . . 9 9 Kick . | . . . . . Crush 10 | . . 6 4 . Escape Stasis . | . . . . . Rewire . | . . . . . Trap . | . . . . . Miscellaneous . | . . . . . Route ------- -11/Scrapyard -10/Materials -9/Materials -8/Materials -7/Factory History --------- Turn | Location | Event 5 | -11/Scrapyard | Discovered new exit (range 16) 205 | -11/Scrapyard | Entered Materials 301 | -10/Materials | Build established: Mutant 539 | -10/Materials | Discovered new exit (range 6) 566 | -10/Materials | Entered another Materials area 566 | -9/Materials | Evolved 2 slots: Propulsion x1, Weapon x1 717 | -9/Materials | Lost 3 parts (2n1u) 977 | -9/Materials | Discovered new exit (range 10) 1348 | -9/Materials | Build established: Tank 1413 | -9/Materials | Entered another Materials area 1413 | -8/Materials | Evolved 2 slots: Power x1, Propulsion x1 1554 | -8/Materials | Lost 4 parts (1p1n1u1w) 1599 | -8/Materials | Released all parts (2) 1628 | -8/Materials | Lost 6 parts (1p3n2w) 1656 | -8/Materials | Discovered new exit (range 12) 1660 | -8/Materials | Core integrity fell below 50% 1669 | -8/Materials | Entered Factory 1669 | -7/Factory | Evolved 2 slots: Propulsion x1, Weapon x1 2075 | -7/Factory | Core integrity fell below 50% 2097 | -7/Factory | System corruption reached 10% 2127 | -7/Factory | Lost 11 parts (2p1n2u6w) 2133 | -7/Factory | Core integrity fell below 20% 2230 | -7/Factory | Destroyed by P-60 Hacker with Shock Rifle Last Messages --------------- 02084_ System corrupted: Matter fused (-8). 02090_ Acquired Gauss Cannon. 02096_ Lgt. Nuclear Core destroyed. 02099_ System corrupted: Heat flow error (+183). 02108_ P-60 Hacker knocked back. 02117_ System corrupted: Gauss Cannon rejected. 02144_ K-01 Serf cleans the Subcomponent Replicator. 02146_ System corrupted: Component data lost. 02149_ K-01 Serf cleans the Subcomponent Replicator. 02156_ K-01 Serf cleans the Construction Platform. 02165_ Slammed into P-60 Hacker. 02166_ K-01 Serf cleans the Construction Platform. 02166_ Slammed into P-60 Hacker. 02169_ ALERT: Rogue bot located, Programmers report to Factory Zone 5C. 02176_ System corrupted: Energy discharge (-32). 02191_ 2Y#N9K9KZT O&=JOEWKXU>0DKH7PETUDORMSPU50 02205_ Acquired Arm. Treads. 02206_ System corrupted: Heat flow error (+129). 02224_ ,YQLXAEJAXD9/9J<,:YKUL GZE1&25 02224_ Pressure Siphon disabled. Map ----- +----------------------------------------------------+ | ?????????????????????????????????????????????????? | | ?????????????????????????????????????????????????? | | ?????????????????????????????????????????????????? | | ?????????????????????????????????????????????????? | | ?????????????????????????????????????????????????? | | ?????????????????????????????????????????????????? | | ?????????????????????????????????????????????????? | | ?????????????????????????????????????????????????? | | ?????????????????? ????????????????????????????? | | ?????????????????? ????????????????????????????? | | ?????????????????? ????????????????????????????? | | ?????????????????? ????????????????????????????? | | ??????????????????# #????????????????????????????? | | ????????????????#?# #????????????????????????????? | | ????? ??????????? #r#######??????????????????????? | | ????? ??????????? # #??????????????????????? | | ????? ????????????+ #??????????????????????? | | ????# ????????????# #??????????????????????? | | ????# ????????????# #???????####???????????? | | #???# ?############ #?????? ????????????? | | #???# ?# # ###### ???????????? | | #???# ## """" u = ???????????? | | #???# ## """" # a ????????????? | | #???# ## """" # """ ???????????????? | | #???# ## """" #p """ ??????????????? | | #???# ## """" + **@ """ ??????????????? | | #???# + """" ! ## ** %"" !????????????? | | #???# # ## ** ?????????????? | | ##### ####+####### ???????????? | | + +?????????? | | ##### T########## ################# ??????????? | | #???####????????#k##+#???????????????????????????? | | #???????????????# ?? "???????????????????????????? | | ????????????????# ?? "???????????????????????????? | | ????????????????#??? ???????????????????????????? | | ????????????????????""???????????????????????????? | | ?????????????????????????????????????????????????? | | ?????????????????????????????????????????????????? | | ?????????????????????????????????????????????????? | | ?????????????????????????????????????????????????? | | ?????????????????????????????????????????????????? | | ?????????????????????????????????????????????????? | | ?????????????????????????????????????????????????? | | ?????????????????????????????????????????????????? | | ?????????????????????????????????????????????????? | | ?????????????????????????????????????????????????? | | ?????????????????????????????????????????????????? | | ?????????????????????????????????????????????????? | | ?????????????????????????????????????????????????? | | ?????????????????????????????????????????????????? | +----------------------------------------------------+ Best States ------------- Heat Dissipation 38 Energy Generation 19 Energy Capacity 305 Matter Stores 300 Matter Capacity 300 Sight Range 16 Robot Scan Range 15 Terrain Scan Density 10 Armor Coverage 225 Evasion (%) 63 Recoil Reduction 4 Energy Filtering 30 Item Schematics ----------------- None Robot Schematics ------------------ None Fabricated ------------ Nothing Alien Tech Used ----------------- None Achievements -------------- None Challenges ------------ None Game ------ Seed FrostComponentTendrils Manual? 0 Play Time 00:26:46 Cumulative 7.5 hours Start 2024.05.25 @ 18:20:34 End 2024.05.25 @ 18:46:27 Sessions 1 Manual Loads 0 Difficulty Rogue Special Mode None Game No. 19 Rogue 19 Adventurer 0 Explorer 0 Win Type - Total 0 Types 0/0/0/0/0/0/0/0/0 Lore% 5 Gallery% 15 Achievement% 14 Wizard Run 0 Options --------- Layout 0 ASCII 0 Keyboard 0 Movement Arrows Keybinds 0 Fullscreen 1 Font 18/SmallcapsGlow Map View 38x25 Zoom Use 89% Tactical HUD 1 Map Filters NONE Filters NONE Steam 1 RUN: f830d51c-dbd7-423e-b390-f641199a7af2